[Event "FIDE WSTC Open 50 2025"]
[Site "Prague"]
[Date "2025.02.24"]
[Round "7.4"]
[White "Bellia, Fabrizio"]
[Black "Novikov, Igor"]
[Result "1/2-1/2"]
[Annotator "TA"]
[ECO "B53"]
[WhiteElo "2393"]
[BlackElo "2490"]
[PlyCount "65"]
[EventDate "2025.02.17"]
[EventType "team-tourn"]
[EventCountry "CZE"]
[SourceTitle "playchess.com"]
[Source "ChessBase"]
[SourceQuality "1"]
[TimeControl "40/5400+30:1800+30"]

{[%evp 9,65,7,4,1,39,35,28,38,42,32,38,30,47,45,55,45,48,39,77,0,16,19,141,127,130,76,83,69,63,75,62,75,73,84,134,124,135,14,33,0,17,0,30,14,12,0,0,0,0,0,0,-60,0,0,0,-58,0,0]} 1. e4 {[%emt 0:00:07]} c5 {[%emt 0:00:06]} 2. Nf3 {[%emt 0:00:05]} d6 {[%emt 0:00:06]} 3. d4 {[%emt 0:00:06]} cxd4 {[%emt 0:00:06]} 4. Qxd4 {[%emt 0:00:05]} Nf6 {[%emt 0:00:18]} 5. Bg5 {[%emt 0:00:35]} Nc6 {[%emt 0:01:24]} 6. Bb5 {[%emt 0:00:25] B53: Sicilian: 2...d6: Lines with Qxd4.} Qa5+ {[%emt 0:09:50]} 7. Nc3 {[%emt 0:00:19][%cal Bb1c3,Bc3b5,Bb5c7,Bc7a8,Ba8b6,Bb6d5][%mdl 32]} Qxb5 {[%emt 0:00:47]} 8. Nxb5 {[%emt 0:01:11] White has an edge.} Nxd4 {[%emt 0:00:04]} 9. Nfxd4 {[%emt 0:00:53] [#]} Nxe4 {[%emt 0:07:41]} 10. Nc7+ $1 {[%emt 0:20:03]} Kd8 $1 {[%emt 0:00:21]} 11. Nxa8 {[%emt 0:00:22] A sharp opening} Nxg5 {[%emt 0:00:04]} 12. Nb5 {[%emt 0:00:17]} a6 {[%emt 0:12:51]} 13. Nc3 {[%emt 0:03:09]} b5 {[%emt 0:08:08] [#]} 14. O-O {[%emt 0:07:43] 14.h4 gains popularity.} (14. Nb6 $16) 14... Bb7 $11 {[%emt 0:06:30]} 15. Nb6 {[%emt 0:00:11] Black should prevent a4.} Ne4 $146 {[%emt 0:01:31]} (15... e6 $11) (15... e6 16. a4 Kc7 17. a5 h5 18. h4 Nh7 19. Ne2 d5 20. b3 g5 21. c4 dxc4 22. bxc4 {½-½ Drozdowski,K (2454)-Vachier Lagrave,M (2754) Titled Tuesday intern op 2nd May blitz 2015 (2)}) 16. Nxe4 $16 {[%emt 0:03:59]} Bxe4 {[%emt 0:00:03]} 17. Rfe1 {[%emt 0:03:02]} (17. c4 $142) 17... Bb7 {[%emt 0:08:28] aiming for ...Kc7.} 18. c4 {[%emt 0:00:26]} Kc7 $1 {[%emt 0:02:10]} 19. Nd5+ {[%emt 0:00:26]} Kd7 {[%emt 0:00:07]} 20. a4 {[%emt 0:10:49][%cal Ba2a4,Ba4a5][%mdl 32] White has more active pieces.} e6 {[%emt 0:02:39]} 21. Nb6+ {[%emt 0:07:42]} Kc6 {[%emt 0:06:59]} (21... Kc7 $142 22. a5 bxc4) 22. a5 {[%emt 0:00:30] And now cxb5+ would win.} b4 {[%emt 0:01:57]} 23. b3 {[%emt 0:11:30]} ({White should try} 23. Re3 $16) 23... g6 {[%emt 0:01:25]} 24. Rad1 {[%emt 0:02:11]} ({Don't do} 24. Ra4 $6 Bg7 $16) 24... Bg7 {[%emt 0:00:32]} 25. Re3 {[%emt 0:01:24]} h5 {[%emt 0:03:19]} 26. h4 {[%emt 0:00:53]} (26. Rf3 $5 Rf8 $8 27. Rfd3 $14) 26... Kc7 {[%emt 0:02:50]} 27. g3 {[%emt 0:03:02]} Bc6 {[%emt 0:01:57]} 28. Red3 {[%emt 0:06:21]} Rd8 {[%emt 0:00:26]} 29. Re1 {[%emt 0:00:21]} Bc3 {[%emt 0:05:31] A strong pair of Bishops.} 30. Rc1 {[%emt 0:00:56]} (30. Ree3 $11) 30... Bb2 {[%emt 0:00:56]} (30... d5 $1 $15 31. cxd5 exd5) 31. Re1 {[%emt 0:00:18]} Bc3 {[%emt 0:00:10]} 32. Rc1 {[%emt 0:00:09]} (32. Ree3 $11) 32... Bb2 {[%emt 0:01:06]} ({Black should play} 32... d5 $1 $15 33. cxd5 exd5) 33. Re1 {[%emt 0:00:05] Weighted Error Value: White=0.23 (precise) /Black=0.18 (very precise)   Mistake:       	White=5     	Black=4      Inaccurate:     	White=1     	Black=3      OK:         	White=8     	Black=10     Best:        	White=2     	Black=4      Strong:       	White=1     	Black=2} 1/2-1/2

[Event "FIDE WSTC Open 50 2025"]
[Site "Prague"]
[Date "2025.02.24"]
[Round "7.5"]
[White "Ftacnik, Lubomir"]
[Black "Adams, Michael"]
[Result "1-0"]
[Annotator "TA"]
[ECO "A17"]
[WhiteElo "2438"]
[BlackElo "2664"]
[PlyCount "79"]
[EventDate "2025.02.17"]
[EventType "team-tourn"]
[EventCountry "CZE"]
[SourceTitle "playchess.com"]
[Source "ChessBase"]
[SourceQuality "1"]
[TimeControl "40/5400+30:1800+30"]

{[%evp 12,79,0,-8,9,4,4,-3,10,19,19,12,19,27,43,0,0,0,0,0,0,-1,0,0,27,29,86,89,253,268,246,259,263,251,305,306,324,315,340,340,331,326,363,372,363,373,375,339,404,401,403,402,395,406,408,408,417,400,424,397,425,403,414,393,420,407,444,423,543,540]} 1. Nf3 {[%emt 0:00:04]} Nf6 {[%emt 0:00:09]} 2. c4 {[%emt 0:00:11]} e6 {[%emt 0:00:06]} 3. Nc3 {[%emt 0:00:22]} Bb4 {[%emt 0:00:09]} 4. g3 {[%emt 0:01:00]} O-O {[%emt 0:00:12]} 5. Bg2 {[%emt 0:01:03]} d5 {[%emt 0:00:11]} 6. a3 {[%emt 0:00:53]} Bxc3 {[%emt 0:00:07] was the old line (6...Be7).} (6... Be7 7. d4 dxc4 8. Ne5 Nc6 9. Nxc6 bxc6 10. Bxc6 Rb8 11. O-O Bb7 12. Bxb7 Rxb7 13. e4 Rb3 14. Be3 Rxb2 15. Qa4 Ng4 16. Qxc4 Bg5 17. Nd1 Nxe3 18. fxe3 Rb6 19. Rc1 {½-½ Ftacnik,L (2580)-Adams,M (2744) Bundesliga 0102 2001 (5.2)}) 7. bxc3 {[%emt 0:02:32]} c5 {[%emt 0:00:21] A17: English Opening: 1...Nf6 with ...Bb4.} 8. cxd5 {[%emt 0:03:51]} exd5 {[%emt 0:00:11]} 9. O-O {[%emt 0:00:29][%cal Oc3c4]} Nc6 {[%emt 0:05:27] The position is equal.} 10. d4 {[%emt 0:05:38]} Ne4 {[%emt 0:06:20]} 11. dxc5 {[%emt 0:04:39][%cal Oc3c4]} Re8 {[%emt 0:06:07][%cal Bf8e8,Be8e2,Be2b2][%mdl 32] Black sacrificed a pawn} 12. Qc2 {[%emt 0:06:34]} Qf6 {[%emt 0:09:41][%cal Oc8f5]} 13. Bb2 $146 {[%emt 0:04:05]} (13. Nd4 Nxc3 14. Qxc3 Qxd4 15. Qxd4 Nxd4 16. e3 Nb3 17. Rb1 Nxc5 18. Bxd5 Bh3 19. Rd1 Rad8 20. Rb4 Be6 21. Rbd4 Nb3 22. Bxb3 {½-½ Sorokin,A (2537)-Dragun,K (2548) Pan American Intercollegiate-chT 2023 (3)}) 13... Bf5 {[%emt 0:03:31][%cal Oe4g3] Hoping for ...Nxg3!.} 14. Qb3 {[%emt 0:11:14][%csl LRb7,LRd5]} Nxc5 {[%emt 0:13:16] A dynamic duo of knights.} 15. Qxd5 {[%emt 0:02:23]} Rxe2 {[%emt 0:00:11]} 16. Qxc5 {[%emt 0:02:25]} Rxb2 {[%emt 0:00:18]} 17. Rad1 {[%emt 0:02:11]} b6 {[%emt 0:06:14]} 18. Qd6 {[%emt 0:02:29]} Rc8 {[%emt 0:13:07] [#]} (18... Qxc3 $2 19. Nh4 Bg4 20. Bxc6 $18 (20. Qxc6 Qxc6 21. Bxc6 Rc8 $18)) (18... Re8 $11) 19. Nh4 $1 $16 {[%emt 0:10:16]} Bg4 $2 {[%emt 0:04:23] [#] This costs Black the game.} (19... Qxd6 $16 20. Rxd6 Ne7) 20. Bxc6 $1 $18 {[%emt 0:02:52]} Bxd1 {[%emt 0:00:18]} 21. Qxf6 {[%emt 0:00:08]} gxf6 {[%emt 0:00:03]} 22. Rxd1 {[%emt 0:00:11]} (22. Bd7 Be2 23. Bxc8 Bxf1 24. Kxf1 Ra2 $15) 22... Re2 {[%emt 0:13:24]} (22... Rxc6 $2 23. Rd8+ Kg7 24. Nf5+ Kg6 25. Ne7+ Kh6 26. Nxc6 $18) 23. Bb5 {[%emt 0:05:55]} Re5 {[%emt 0:07:04]} 24. c4 {[%emt 0:00:33]} Kf8 {[%emt 0:00:03]} 25. Ng2 {[%emt 0:05:56]} Ra8 {[%emt 0:02:41]} 26. Ne3 {[%emt 0:03:42]} a6 {[%emt 0:00:35]} 27. Bc6 {[%emt 0:01:09]} Rb8 {[%emt 0:00:40]} 28. Bd5 {[%emt 0:02:24]} Re7 {[%emt 0:00:06]} 29. Rb1 {[%emt 0:02:56]} Rc7 {[%emt 0:00:25]} 30. a4 {[%emt 0:03:49]} Rc5 {[%emt 0:00:07]} 31. Kf1 {[%emt 0:04:04]} Ke8 {[%emt 0:00:34]} 32. Ke2 {[%emt 0:00:59]} Ra5 {[%emt 0:01:48]} 33. Rb4 {[%emt 0:02:19]} Kd7 {[%emt 0:00:28]} 34. Kd3 {[%emt 0:00:52]} b5 {[%emt 0:01:50]} 35. axb5 {[%emt 0:00:38][%cal Ob5b6]} ({Less strong is} 35. Bxf7 Rxa4 36. Kc3 Rxb4 37. Kxb4 bxc4+ 38. Kc3 (38. Kxc4 a5 $16) 38... a5 39. Bxc4 (39. Nxc4 a4 $16) 39... a4 $18) 35... axb5 {[%emt 0:00:04]} 36. c5 {[%emt 0:01:25]} Ra4 {[%emt 0:00:20]} 37. Rb3 {[%emt 0:01:34]} Kc7 {[%emt 0:00:12]} 38. Bg2 {[%emt 0:01:59] Nd5+ is the strong threat.} ({Don't do} 38. Bxf7 Kc6 39. Bd5+ Kxc5 40. Rc3+ Kb4 $18) 38... Ra1 {[%emt 0:03:00]} 39. Nd5+ {[%emt 0:00:56]} Kc6 {[%emt 0:00:33]} 40. Nxf6+ {[%emt 0:00:38] Weighted Error Value: White=0.03 (flawless) /Black=0.26 (precise)   Loses game:     	---       	Black=1      Mistake:       	---       	Black=1      Inaccurate:     	White=1     	Black=1      OK:         	White=24    	Black=8      Best:        	---       	Black=1      Strong:       	White=2     	---} 1-0

[Event "FIDE WSTC Open 50 2025"]
[Site "Prague"]
[Date "2025.02.24"]
[Round "7.6"]
[White "Conquest, Stuart C"]
[Black "Mrva, Martin"]
[Result "1-0"]
[Annotator "TA"]
[ECO "A45"]
[WhiteElo "2513"]
[BlackElo "2394"]
[PlyCount "157"]
[EventDate "2025.02.17"]
[EventType "team-tourn"]
[EventCountry "CZE"]
[SourceTitle "playchess.com"]
[Source "ChessBase"]
[SourceQuality "1"]
[TimeControl "40/5400+30:1800+30"]

{[%evp 10,157,30,25,33,26,27,29,28,31,38,21,45,37,57,58,55,54,64,49,77,80,86,45,71,49,79,37,39,12,53,47,77,64,60,68,64,55,67,44,98,41,52,43,42,33,35,0,33,26,26,-13,-6,-1,88,6,37,14,60,0,103,97,196,200,194,186,209,202,194,59,261,267,277,268,374,352,403,402,408,393,366,242,242,242,250,237,207,152,371,369,370,197,250,176,347,350,335,329,304,276,350,341,347,347,339,233,242,236,232,162,161,147,232,250,231,145,252,234,603,599,590,250,263,195,206,204,201,141,135,146,158,124,136,43,129,104,127,132,693,478,693,678,3555,1685,29980,29981,29981,29982,29986,29987]} 1. d4 {[%emt 0:00:32]} Nf6 {[%emt 0:00:07]} 2. Bg5 {[%emt 0:01:21]} e6 {[%emt 0:06:27]} 3. e4 {[%emt 0:00:41]} h6 {[%emt 0:01:17]} 4. Bxf6 {[%emt 0:00:15]} Qxf6 {[%emt 0:00:06]} 5. c3 {[%emt 0:05:52]} d6 {[%emt 0:00:51]} 6. Bd3 {[%emt 0:03:39]} e5 {[%emt 0:04:10] A45: Trompowsky Attack.} 7. Ne2 {[%emt 0:00:47]} Qd8 {[%emt 0:12:31]} 8. O-O {[%emt 0:04:29]} Be7 {[%emt 0:01:08] White has an edge.} 9. Nd2 {[%emt 0:03:50]} O-O {[%emt 0:01:07]} 10. f4 {[%emt 0:14:07]} Bf6 {[%emt 0:09:08]} 11. Nf3 {[%emt 0:15:19][%cal Rd4e5]} Nc6 {[%emt 0:04:37]} 12. h3 {[%emt 0:02:19]} g6 {[%emt 0:05:06]} 13. Qd2 {[%emt 0:04:37]} Bg7 {[%emt 0:01:05]} 14. Rad1 {[%emt 0:00:40]} Qe7 {[%emt 0:02:04]} 15. Rde1 $146 {[%emt 0:09:23]} ({Predecessor:} 15. b4 exd4 16. Nexd4 Bd7 17. Rde1 a6 18. Bc4 Nxd4 19. cxd4 c6 20. Kh1 Rac8 21. a3 {1-0 Malek,D (2430)-Petrova,K (2282) Olomouc IM-B 19th 2016 (1)}) 15... a6 {[%emt 0:04:21]} 16. a3 {[%emt 0:01:39]} Bd7 {[%emt 0:01:20]} 17. Rf2 {[%emt 0:01:11]} Rad8 {[%emt 0:06:39]} 18. Kh1 {[%emt 0:01:26]} Bc8 {[%emt 0:06:24]} 19. Qc1 {[%emt 0:01:28]} Rfe8 {[%emt 0:03:34]} 20. Bb1 {[%emt 0:01:09]} b5 {[%emt 0:02:21]} 21. Ba2 {[%emt 0:07:50]} Rf8 {[%emt 0:02:19]} 22. b4 {[%emt 0:05:54]} Kh7 {[%emt 0:02:03]} 23. Bd5 {[%emt 0:02:31]} Bd7 {[%emt 0:05:45]} 24. Qd2 {[%emt 0:01:48]} (24. f5 {feels hotter.} Bf6 25. Qd2 a5 26. Kg1) 24... Be8 {[%emt 0:01:14]} (24... Qe8 $14) 25. Qc2 {[%emt 0:02:11]} (25. f5 $16) 25... Nb8 $14 {[%emt 0:01:54]} 26. Ba2 {[%emt 0:01:16]} Nd7 {[%emt 0:01:01]} 27. Ng3 {[%emt 0:01:42]} c6 {[%emt 0:06:54]} 28. Qc1 {[%emt 0:00:27]} Bf6 {[%emt 0:01:30]} 29. Kh2 {[%emt 0:01:40]} Bg7 {[%emt 0:00:19]} 30. Ref1 {[%emt 0:01:23]} exf4 {[%emt 0:01:05]} 31. Qxf4 {[%emt 0:00:23]} c5 {[%emt 0:00:09]} (31... Nb6 $11) 32. Re1 {[%emt 0:01:33] White has more active pieces.} (32. bxc5 $1 $16 dxc5 33. Qc7 (33. e5 f6 $16)) 32... cxd4 {[%emt 0:00:23]} 33. cxd4 {[%emt 0:00:06]} Nf6 {[%emt 0:01:06]} (33... Nb6 $11) 34. Bb1 {[%emt 0:01:01]} (34. Qc1 $14) 34... Bd7 {[%emt 0:01:41]} (34... Bc6 $11 {remains equal.}) 35. Nf5 $1 $16 {[%emt 0:01:19]} Nh5 {[%emt 0:00:31]} (35... gxf5 36. exf5 $16) (35... Bxf5 $16 36. exf5 Qd7) 36. Qxd6 $18 {[%emt 0:00:34]} (36. Nxe7 Nxf4 37. d5 Rde8 $15) 36... Qxd6+ {[%emt 0:02:03]} 37. Nxd6 {[%emt 0:00:05]} Bxh3 {[%emt 0:00:52] [#]} 38. Nxf7 $1 {[%emt 0:02:05]} Rxf7 {[%emt 0:00:38]} 39. gxh3 {[%emt 0:00:39]} (39. Kxh3 $18 {[%cal Of3g5] Strongly threatening Ng5+!.} Rxd4 (39... Bxd4 $2 40. Ng5+ hxg5 41. Rxf7+ Kh6 42. g4 $18) 40. Ng5+ hxg5 41. Rxf7) 39... Rc7 $2 {[%emt 0:01:58]} (39... Bxd4 40. Ng5+ hxg5 41. Rxf7+ Kh6 42. Kg2 $16 (42. e5 Bc3 $18)) (39... Rxd4 $1 $14 40. Ref1 (40. Ng5+ hxg5 41. Rxf7 Rd2+ 42. Kg1 Kg8 $11) 40... Rd8) 40. e5 {[%emt 0:00:18]} Nf4 {[%emt 0:00:41]} 41. Re4 {[%emt 0:10:52]} Ne6 {[%emt 0:07:07] [#]} 42. d5 $1 {[%emt 0:11:16][%mdl 512]} Rxd5 {[%emt 0:10:51] [#]} (42... Ng5 43. Nxg5+) 43. Ba2 $1 {[%emt 0:00:07]} Rcd7 {[%emt 0:00:16]} 44. Bxd5 {[%emt 0:00:25]} Rxd5 {[%emt 0:00:07]} 45. Rd2 {[%emt 0:00:58] Repels Rd3} Rxd2+ {[%emt 0:00:07]} 46. Nxd2 {[%emt 0:00:07][%mdl 4096] Endgame KRN-KBN} g5 {[%emt 0:00:03]} 47. Kg3 {[%emt 0:04:34]} Kg6 {[%emt 0:00:07]} 48. Kf3 {[%emt 0:01:00]} Kf5 $2 {[%emt 0:00:14]} (48... h5 $16 49. Nf1 g4+ 50. hxg4 Ng5+ 51. Kf4 Nxe4) 49. Nf1 {[%emt 0:00:38]} h5 {[%emt 0:00:41][%cal Bh6h5,Bh5h4][%mdl 32]} 50. Ne3+ {[%emt 0:00:49]} Kg6 {[%emt 0:00:06]} 51. Kg3 {[%emt 0:02:21]} Bh6 $2 {[%emt 0:01:03]} (51... Bh8 52. Kf2 Bg7) 52. Nd5 {[%emt 0:00:33]} Kf5 {[%emt 0:02:45]} 53. Re1 {[%emt 0:00:25][%cal Rd5e7]} h4+ {[%emt 0:00:29]} 54. Kg2 {[%emt 0:01:28]} Bg7 {[%emt 0:00:28]} 55. Ne7+ {[%emt 0:00:41]} Kf4 {[%emt 0:00:07]} 56. Kf2 {[%emt 0:01:23]} g4 {[%emt 0:00:58]} 57. Nd5+ {[%emt 0:01:15]} Kg5 {[%emt 0:00:10]} 58. hxg4 {[%emt 0:00:05]} Kxg4 {[%emt 0:00:14]} 59. Nf6+ {[%emt 0:00:21]} Kf5 {[%emt 0:01:10]} 60. Nd7 {[%emt 0:01:06]} Bh6 {[%emt 0:04:45]} (60... Nf4 $16 {was worth a try.}) 61. Rd1 {[%emt 0:00:33]} Bf4 {[%emt 0:03:46]} 62. Rd3 {[%emt 0:00:05]} Kg4 {[%emt 0:01:12]} (62... Ng5 $16 63. Rd5 Nf7) 63. Nc5 {[%emt 0:00:38]} Bg3+ $2 {[%emt 0:01:35]} (63... Kf5 64. Rd6 (64. Nxa6 Bxe5 65. Rd5 Nf4 $18) 64... Nxc5 65. bxc5 Kxe5) 64. Kg1 {[%emt 0:00:08]} Kf5 {[%emt 0:00:49]} 65. Rd6 {[%emt 0:00:59]} (65. Rf3+ $142 Kg4 66. Rxg3+ hxg3 67. Nxe6) 65... Ng5 {[%emt 0:00:35]} 66. Rd5 {[%emt 0:00:36]} (66. Nxa6 Nh3+ 67. Kg2 Nf4+ 68. Kh1 Kxe5 $18) 66... Nh3+ {[%emt 0:01:04]} 67. Kh1 {[%emt 0:00:17]} Nf4 {[%emt 0:00:57]} 68. Rd6 {[%emt 0:00:13]} Kxe5 {[%emt 0:00:13]} 69. Rxa6 {[%emt 0:00:04]} Kd5 {[%emt 0:00:31]} 70. Rb6 {[%emt 0:00:24]} Kc4 {[%emt 0:00:07]} 71. Ne4 {[%emt 0:00:08]} (71. Rf6 $16) 71... Nd5 {[%emt 0:00:42]} ({Black should try} 71... Ne2 $1 $14) 72. Rc6+ {[%emt 0:00:41]} Kb3 {[%emt 0:00:53]} 73. Rc5 {[%emt 0:00:11][%csl LRb5,LRd5]} Nb6 $2 {[%emt 0:01:16][%mdl 8192]} (73... Ne7 $16) 74. Rxb5 {[%emt 0:00:48]} Nc4 {[%emt 0:00:21]} (74... Bc7 $142 75. Rc5 Bf4 76. Rc3+ Ka4 77. Nc5+ Kb5) 75. Nxg3 {[%emt 0:00:32][%cal Ob5a5]} hxg3 {[%emt 0:00:52] [#]} 76. Ra5 $1 {[%emt 0:00:24] White wants to mate with Ra6.} Ne3 {[%emt 0:00:41]} (76... Nb6 77. Ra6) 77. b5 {[%emt 0:00:50] White mates.} Nc4 {[%emt 0:00:13]} 78. Ra6 {[%emt 0:00:11]} Kc3 {[%emt 0:00:28]} 79. Rc6 {[%emt 0:00:06] Weighted Error Value: White=0.24 (precise) /Black=0.34  Loses game:     	---       	Black=3      Mistake:       	White=5     	Black=11     Inaccurate:     	White=11    	Black=9      OK:         	White=14    	Black=16     Best:        	White=5     	Black=7      Strong:       	White=3     	---        Brilliant:      	White=1     	---} 1-0

[Event "FIDE WSTC Open 50 2025"]
[Site "Prague"]
[Date "2025.02.24"]
[Round "7.7"]
[White "Stohl, Igor"]
[Black "Hebden, Mark L"]
[Result "1/2-1/2"]
[Annotator "TA"]
[ECO "E62"]
[WhiteElo "2409"]
[BlackElo "2363"]
[PlyCount "37"]
[EventDate "2025.02.17"]
[EventType "team-tourn"]
[EventCountry "CZE"]
[SourceTitle "playchess.com"]
[Source "ChessBase"]
[SourceQuality "1"]
[TimeControl "40/5400+30:1800+30"]

{[%evp 14,19,45,29,41,31,49,49]} 1. d4 {[%emt 0:00:56]} Nf6 {[%emt 0:00:21]} 2. Nf3 {[%emt 0:00:33]} g6 {[%emt 0:01:38]} 3. g3 {[%emt 0:00:52]} Bg7 {[%emt 0:00:39]} 4. Bg2 {[%emt 0:00:16]} O-O {[%emt 0:00:38]} 5. O-O {[%emt 0:01:01]} d6 {[%emt 0:00:19]} 6. c4 {[%emt 0:00:38]} Nc6 {[%emt 0:00:28]} 7. Nc3 {[%emt 0:00:51]} e5 {[%emt 0:00:33]} 8. dxe5 {[%emt 0:01:32]} dxe5 $1 {[%emt 0:00:14] 8...dxe5 is better than 8...Nxe5. E62: King's Indian: Fianchetto: 6...c6 and Panno Variation (6...Nc6) without ...a6.} 9. Bg5 {[%emt 0:00:30]} h6 {[%emt 0:00:14]} 10. Qxd8 {[%emt 0:00:45] OK:         	White=2     	---} {Predecessor:} Rxd8 $146 11. Bxf6 Bxf6 12. Nd5 Kg7 13. Nxc7 Rb8 14. e4 Be7 15. Nd5 Bc5 16. Rfd1 Be6 17. b3 a5 18. Rd2 a4 19. bxa4 {½-½ Giri,A (2780)-Dubov,D (2710) MrDodgy Online Inv 2nd blitz 2021 (3.9)} 1/2-1/2

[Event "FIDE WSTC Open 50 2025"]
[Site "Prague"]
[Date "2025.02.24"]
[Round "7.8"]
[White "Emms, John M"]
[Black "Lipka, Juraj"]
[Result "1/2-1/2"]
[Annotator "TA"]
[ECO "C08"]
[WhiteElo "2409"]
[BlackElo "2348"]
[PlyCount "103"]
[EventDate "2025.02.17"]
[EventType "team-tourn"]
[EventCountry "CZE"]
[SourceTitle "playchess.com"]
[Source "ChessBase"]
[SourceQuality "1"]
[TimeControl "40/5400+30:1800+30"]

{[%evp 22,103,32,33,35,24,35,39,38,33,44,14,11,14,15,8,14,13,15,10,10,16,14,16,18,24,25,14,20,20,22,25,24,3,30,34,206,18,27,0,0,0,68,66,97,94,98,104,106,91,99,97,101,78,79,71,65,72,67,81,75,60,91,81,92,41,25,20,66,0,0,-8,-8,-8,-8,-8,-8,-8,-8,-8,-8,-8,-8,-8]} 1. e4 {[%emt 0:00:19]} e6 {[%emt 0:00:14]} 2. d4 {[%emt 0:00:07]} d5 {[%emt 0:00:12]} 3. Nd2 {[%emt 0:00:40]} c5 {[%emt 0:00:24]} 4. exd5 {[%emt 0:00:24]} exd5 {[%emt 0:00:09]} 5. Bb5+ {[%emt 0:00:37]} Nc6 {[%emt 0:00:47]} 6. Ngf3 {[%emt 0:00:47]} Bd6 {[%emt 0:01:43]} 7. dxc5 {[%emt 0:01:41]} Bxc5 {[%emt 0:00:07]} 8. O-O {[%emt 0:00:28]} Nge7 {[%emt 0:00:43]} 9. Nb3 {[%emt 0:00:28]} Bd6 {[%emt 0:00:44]} 10. Re1 {[%emt 0:02:34]} O-O {[%emt 0:00:11]} 11. Bd3 {[%emt 0:02:51]} h6 {[%emt 0:04:23]} 12. h3 {[%emt 0:00:35]} Bf5 {[%emt 0:01:36] C09: French Tarrasch: 3...c5 4 exd5 exd5 5 Ngf3 Nc6.} 13. c3 {[%emt 0:07:23]} Qd7 {[%emt 0:12:56]} 14. Be3 {[%emt 0:01:54][%cal Bc1e3,Be3c5,Bc5d4][%mdl 32]} Rfe8 {[%emt 0:03:54] White is slightly better.} 15. Bc5 {[%emt 0:07:49]} Bc7 {[%emt 0:13:23]} 16. Bxf5 $146 {[%emt 0:16:40]} (16. Nbd4 Bxd3 17. Qxd3 Ng6 18. Qf5 Qxf5 19. Nxf5 Nf4 20. Rxe8+ Rxe8 21. Rd1 Re2 22. b4 Rxa2 {0-1 Jaracz,P (2542)-Gontcharov,V (2359) Internet Section 11B g/8'+2" blitz 2004 (3)}) 16... Nxf5 {[%emt 0:03:51]} 17. Qd3 {[%emt 0:04:05]} b6 {[%emt 0:03:21]} 18. Bd4 {[%emt 0:09:34]} Re6 {[%emt 0:16:51]} 19. Rxe6 {[%emt 0:07:26]} fxe6 {[%emt 0:08:38]} 20. Re1 {[%emt 0:00:45]} Re8 {[%emt 0:04:57]} 21. Ne5 {[%emt 0:05:48]} Bxe5 {[%emt 0:00:21]} 22. Bxe5 {[%emt 0:00:07]} Nxe5 {[%emt 0:02:31]} 23. Rxe5 {[%emt 0:00:04]} Nd6 {[%emt 0:00:57]} 24. Nd2 {[%emt 0:06:52][%cal Bb3d2,Bd2f1,Bf1e3,Be3g4,Bg4e5][%mdl 32]} Nf7 {[%emt 0:01:03]} 25. Re1 {[%emt 0:01:48]} e5 {[%emt 0:03:48]} 26. Nf1 {[%emt 0:04:58]} Rd8 {[%emt 0:01:55][%cal Be8d8,Bd8d6,Bd6e6][%mdl 32]} 27. a3 {[%emt 0:03:11]} Qa4 {[%emt 0:03:14]} 28. Ne3 {[%emt 0:02:27]} Qb3 $2 {[%emt 0:03:20]} (28... Qc6 $1 $14) 29. Qg6 $2 {[%emt 0:04:10]} ({Only move:} 29. Nf5 $18 {Black must now prevent Qg3.} Re8 30. Qg3) 29... Rd6 $1 $11 {[%emt 0:01:48]} 30. Qg4 {[%emt 0:00:03] [#]} g6 {[%emt 0:02:10][%cal Bg7g6,Bg6g5][%mdl 32]} 31. Qe2 {[%emt 0:01:48]} Kg7 {[%emt 0:01:20]} (31... d4 $11 32. cxd4 exd4) 32. Ng4 $36 {[%emt 0:01:37][%mdl 2048] White has the initiative.} Re6 {[%emt 0:00:54]} 33. f4 {[%emt 0:02:32]} Qc4 {[%emt 0:00:45]} (33... e4 34. Qf2 $16) 34. Qxc4 {[%emt 0:01:27]} (34. Nxe5 Qxf4 35. Qf3 Qxf3 36. Nxf3 Rxe1+ 37. Nxe1 Nd6 $18) (34. fxe5 h5 35. Qxc4 dxc4 $15) 34... dxc4 {[%emt 0:00:04]} 35. Nxe5 $16 {[%emt 0:01:35][%mdl 4096] Endgame KRN-KRN. White is a pawn up.} (35. fxe5 $6 h5 36. Nf2 Nxe5 $11) 35... g5 {[%emt 0:00:53] [#]} 36. Kf2 $1 {[%emt 0:01:23]} Rf6 {[%emt 0:00:32]} 37. g3 {[%emt 0:00:34]} (37. Nxc4 Rxf4+ 38. Kg1 Rxc4 $19) 37... gxf4 {[%emt 0:00:52]} 38. Nxc4 {[%emt 0:00:12] White is more active.} fxg3+ {[%emt 0:00:56]} 39. Kxg3 {[%emt 0:00:02]} Rg6+ {[%emt 0:00:25]} 40. Kf2 {[%emt 0:00:45]} Rf6+ {[%emt 0:01:59]} 41. Ke2 {[%emt 0:12:05]} Ng5 {[%emt 0:07:55]} 42. h4 {[%emt 0:03:42]} Nh3 {[%emt 0:07:35]} 43. Rf1 {[%emt 0:07:16]} (43. Kd3 $16) 43... Nf4+ $14 {[%emt 0:04:08]} 44. Kd2 {[%emt 0:00:07]} Ng2 {[%emt 0:06:19]} (44... Kg6 $1 $11 {deserves consideration.}) 45. Rxf6 {[%emt 0:04:02]} ({White should try} 45. Rg1 $14 Rg6 46. h5) 45... Kxf6 {[%emt 0:00:05] KN-KN. White is a pawn up. The position is equal.} 46. Nd6 {[%emt 0:00:07]} Nxh4 {[%emt 0:01:06]} 47. Nc8 {[%emt 0:00:03]} Nf3+ {[%emt 0:01:19]} 48. Ke2 {[%emt 0:00:50]} Ne5 {[%emt 0:01:07]} 49. Nxa7 {[%emt 0:00:50]} Nc4 {[%emt 0:00:18]} 50. Nc8 {[%emt 0:02:56]} Ke6 {[%emt 0:01:10]} 51. Kf3 {[%emt 0:01:26]} Kd7 {[%emt 0:01:13]} 52. Nxb6+ {[%emt 0:01:01] Weighted Error Value: White=0.15 (very precise) /Black=0.16 (very precise)   Loses game:     	---       	Black=1      Missed win:     	White=1     	---        Mistake:       	White=2     	Black=2      Inaccurate:     	White=2     	Black=3      OK:         	White=15    	Black=17     Best:        	White=2     	Black=1      Strong:       	White=1     	Black=1} 1/2-1/2